Cogmind - Beta 16 @@@ ROGUE MODE // 2025.11.17 @ 23:44:06 Player: Mozco Result: Destroyed by Striker with Plasma Lance Performance ------------- Evolutions (7) 3500 Regions Visited (21) 4200 Robots Destroyed (333) 1665 Value Destroyed (13304) 13304 Prototype IDs (29) 580 Alien Tech Used (0) 0 Bonus (7625) 7625 TOTAL SCORE: 30874 Bonus ------- High Alert Combat Kills 1303 Follower Combat Kills 2521 Network Hubs Disabled 800 Built Enhanced Grunts 300 A7 Reached Mainframe 300 Met R17 at Cetus 500 Met R17 at Research 2000 Friendly Fire -99 Cogmind --------- Core Integrity 0/1300 Matter 295/300 Energy 16/100 System Corruption 29% Temperature Cool (-100) Movement Walking (120) Location -3/Research Parts ------- > --- POWER (2) -------- (None) > --- PROPULSION (6) --- Flexi-carbon Leg Myomer Leg > --- UTILITY (9) ------ Cryofiber Web Advanced Heat Sink Advanced Heat Sink Improved Coolant Injector Advanced Signal Interpreter Weapon Mount Core Analyzer Centrium Medium Armor Plating > --- WEAPON (4) ------- Nova Cannon > --- INVENTORY (5) ---- Flexi-carbon Leg Improved Terrain Scanner Advanced System Restoration Module Hacking Drone Bay (1/1) Peak State ------------ > --- POWER ------------ Particle Reactor Particle Reactor > --- PROPULSION ------- Enhanced Flexi-carbon Leg Biometal Leg Biometal Leg Biometal Leg Biometal Leg Improved Thunder Leg > --- UTILITY ---------- Experimental Cooling System Coolant Network High-capacity Storage Unit Advanced Sensor Array Advanced Signal Interpreter Core Analyzer Centrium Medium Armor Plating Advanced Force Field > --- WEAPON ----------- Heavy Gatling Laser Quantum Rifle Nova Cannon Nova Cannon > --- INVENTORY -------- Quantum Reactor Enhanced Flexi-carbon Leg Myomer Leg Advanced Heat Sink Advanced Energy Well Experimental Matter Compressor Structural Scanner Improved Terrain Scanner Weapon Mount Centrium Medium Armor Plating Centrium Medium Armor Plating Advanced System Restoration Module Hacking Drone Bay Storm Laser Nova Cannon Gamma Bomb Array Micro-nuke Launcher [Rating: 165] Favorites ----------- Power Neutrino Core Engine Improved Deuterium Engine Power Core Neutrino Core Reactor Quantum Reactor Propulsion Flexi-carbon Leg Leg Flexi-carbon Leg Utility High-capacity Storage Unit Device Advanced Heat Sink Storage High-capacity Storage Unit Processor Core Analyzer Hackware Hacking Suite Protection Hardened Medium Armor Plating Weapon Advanced Beam Rifle Energy Gun Advanced Beam Rifle Energy Cannon Nova Cannon Ballistic Gun Light Assault Rifle Launcher Precision Grenade Launcher Special Weapon Improved Plasma Cutter Impact Weapon Mace Build | -11 -10 -9 -9 -8 -7 -7 -7 -7 -6 -6 -6 -6 -6 -6 -5 -5 -5 -5 -5 -4 -3 ------- Run | Yrd Mat Mat Sto Mat Fac Low Low Zio Pro Fac Was Fac Low Low Fac Ext Cet Arc Hub Fac Res Slots Evolved 14 | . . 2 . 2 2 . . . . 2 . . . . 2 . . . . 2 2 Power 1 | . . . . . . . . . . . . . . . 1 . . . . . . Propulsion 4 | . . 2 . . . . . . . . . . . . 1 . . . . 1 . Utility 7 | . . . . 2 2 . . . . . . . . . . . . . . 1 2 Weapon 2 | . . . . . . . . . . 2 . . . . . . . . . . . Parts Attached 287 | 6 15 7 25 19 24 3 2 3 . 10 3 42 1 . 9 27 9 5 14 3 60 Power 37 | 1 2 1 4 . 1 . . . . 1 1 5 . . 2 2 2 2 . . 13 Engine 14 | 1 2 1 4 . 1 . . . . . 1 3 . . 1 . . . . . . Core 6 | . . . . . . . . . . 1 . 1 . . 1 2 . 1 . . . Reactor 17 | . . . . . . . . . . . . 1 . . . . 2 1 . . 13 Propulsion 87 | 2 8 2 10 9 6 1 . 1 . 3 . 9 . . 3 9 2 . 8 . 14 Treads . | . . . . . . . . . . . . . . . . . . . . . . Leg 87 | 2 8 2 10 9 6 1 . 1 . 3 . 9 . . 3 9 2 . 8 . 14 Wheel . | . . . . . . . . . . . . . . . . . . . . . . Hover . | . . . . . . . . . . . . . . . . . . . . . . Flight . | . . . . . . . . . . . . . . . . . . . . . . Utility 93 | 1 4 2 . 7 9 1 2 . . 3 2 16 1 . 4 8 2 2 4 3 22 Device 48 | . 1 . . 1 4 . . . . 3 2 11 1 . 1 4 . 2 2 1 15 Storage 8 | 1 3 . . . . . . . . . . 1 . . 1 . . . . 1 1 Processor 10 | . . 1 . 1 2 . 1 . . . . 1 . . 2 1 . . . 1 . Hackware 5 | . . 1 . 2 1 . . . . . . . . . . . . . . . 1 Protection 22 | . . . . 3 2 1 1 . . . . 3 . . . 3 2 . 2 . 5 Artifact . | . . . . . . . . . . . . . . . . . . . . . . Weapon 70 | 2 1 2 11 3 8 1 . 2 . 3 . 12 . . . 8 3 1 2 . 11 Energy Gun 44 | 1 1 2 5 2 4 . . 2 . 2 . 10 . . . 6 3 1 . . 5 Energy Cannon 13 | . . . 3 1 1 . . . . 1 . 1 . . . 1 . . 2 . 3 Ballistic Gun 2 | 1 . . 1 . . . . . . . . . . . . . . . . . . Ballistic Cannon . | . . . . . . . . . . . . . . . . . . . . . . Launcher 9 | . . . 2 . 3 1 . . . . . . . . . . . . . . 3 Special Weapon 1 | . . . . . . . . . . . . . . . . 1 . . . . . Impact Weapon 1 | . . . . . . . . . . . . 1 . . . . . . . . . Slashing Weapon . | . . . . . . . . . . . . . . . . . . . . . . Piercing Weapon . | . . . . . . . . . . . . . . . . . . . . . . Special Melee Weapon . | . . . . . . . . . . . . . . . . . . . . . . Unidentified Prototypes 29 | . . . 4 2 3 . . . . 2 . 4 . . . . 2 . 2 1 9 Corrupted Parts 6 | . . . . . . . . . . . . . . . . . . 2 . . 4 System Corruption 18 | . . . . . . . . . . . . . . . . . . 3 . . 15 Parts Lost 80 | . 3 . 7 . 2 1 . . . . 2 16 . 4 5 4 . . . . 36 Power 11 | . 1 . . . . . . . . . 1 . . . 1 . . . . . 8 Propulsion 25 | . . . 4 . 1 . . . . . . 3 . 1 2 2 . . . . 12 Utility 18 | . . . . . 1 1 . . . . 1 5 . 2 . . . . . . 8 Weapon 26 | . 2 . 3 . . . . . . . . 8 . 1 2 2 . . . . 8 Highest Loss Streak 12 | . 2 . 2 . 1 1 . . . . 2 7 . 4 2 2 . . . . 12 To Critical Strikes 2 | . . . . . . . . . . . . . . 1 . . . . . . 1 Average Backups 16 | 1 13 14 14 17 19 20 20 18 17 16 16 16 15 15 13 16 16 16 17 15 16 Power 1 | . 1 . 1 1 1 1 1 1 1 1 . 1 1 2 1 1 1 1 1 1 . Propulsion 2 | . 5 4 2 3 2 2 2 2 2 2 2 2 3 3 1 1 1 1 2 2 1 Utility 8 | . 4 6 6 6 9 11 11 10 9 9 10 7 8 8 7 10 10 9 10 9 10 Weapon 4 | . 2 2 4 7 6 5 6 5 5 4 4 3 3 2 3 3 3 3 3 3 2 Tool/Special . | . . . . . . . . . . . . . . . . . . . . . . Unused Backups 27 | . . 1 8 3 1 . . . . . . 1 . . . 2 2 . 2 . 7 Power 3 | . . 1 1 . . . . . . . . 1 . . . . . . . . . Propulsion 3 | . . . . . . . . . . . . . . . . . . . 1 . 2 Utility 12 | . . . 4 1 . . . . . . . . . . . . 2 . 1 . 4 Weapon 9 | . . . 3 2 1 . . . . . . . . . . 2 . . . . 1 Tool/Special . | . . . . . . . . . . . . . . . . . . . . . . Average Slot Usage (%) 96 | . 92 97 98 99 98 98 100 96 100 98 96 95 100 76 96 97 99 99 100 99 93 Engine 4 | . 13 11 11 9 7 7 7 7 7 . 2 3 . . 1 . . . . . . Core 2 | . . . . . . . . . . 5 2 1 . . 3 8 6 5 5 5 . Reactor 2 | . . . . . . . . . . . . . 6 6 5 1 3 5 5 5 8 Leg 29 | . 28 43 43 36 29 30 30 30 30 26 26 25 26 20 28 28 29 28 29 30 26 Device 10 | . . . . . 10 11 6 7 7 14 16 10 19 13 14 11 11 15 8 14 21 Storage 7 | . 27 11 11 9 7 7 7 7 7 6 6 6 6 6 5 5 5 5 5 5 3 Processor 13 | . . 7 11 15 22 23 23 23 23 17 13 17 13 6 11 11 11 11 11 10 9 Protection 3 | . . . . 6 3 1 7 7 7 1 . 3 . . 1 4 5 1 7 5 2 Energy Gun 13 | . 16 20 12 8 12 8 3 12 7 19 20 18 13 16 20 16 22 23 19 10 8 Energy Cannon 3 | . . . 6 8 . . . . . 4 6 3 . . . 3 . . 2 10 7 Launcher 1 | . . . . . 1 6 11 . 7 . . 1 13 4 . . . . . . . Peak Build Rating 165 | 6 10 14 19 36 52 50 50 53 53 70 71 74 74 69 91 94 105 105 114 127 165 Average Rating 70 | 4 8 12 16 29 45 47 49 48 53 64 65 66 73 57 80 87 99 101 108 121 146 On Entrance 58 | . 6 8 14 19 34 49 50 49 53 53 66 71 67 74 61 73 92 105 99 114 122 Avg Prop Armor Cover (%) 3 | . . . 6 . . . . . . . . . . . . . . . . . 2 Naked Turns . | . . . . . . . . . . . . . . . . . . . . . . Heaviest Build 145 | 13 67 32 36 58 64 71 71 67 67 79 72 83 83 73 93 101 103 103 109 112 145 Greatest Support 168 | 20 20 40 43 72 69 66 66 73 73 78 73 74 71 51 91 100 95 95 127 155 168 Greatest Overweight (x) 3 | . 3 . 1 . 1 1 1 . . 1 . 1 1 1 1 1 1 1 1 . 1 Average Overweight (x) . | . 1 . . . . . . . . . . . 1 1 . . 1 . . . . Largest Inventory Capacity 20 | 8 20 15 15 20 20 20 20 20 20 20 20 20 20 20 20 20 20 20 20 20 20 Average Capacity 19 | 6 16 15 15 17 20 20 20 20 20 20 20 20 20 20 20 20 20 20 20 20 19 Most Carried 20 | 2 16 15 15 20 20 20 20 20 20 20 20 20 19 20 18 20 20 20 20 20 20 Average Carried 18 | 1 13 14 14 17 19 19 20 19 20 19 19 19 18 18 16 19 19 19 19 18 19 Final Capacity 20 | 8 15 15 15 20 20 20 20 20 20 20 20 20 20 20 20 20 20 20 20 20 5 Final Carried 20 | 2 15 15 15 20 20 20 20 20 20 20 20 20 19 18 17 20 20 20 20 20 4 Class Distribution -------------------- 32% | Mutant 17% | Scavenger-Skirmisher 16% | Scavenger-Gunner 9% | Scavenger-Mutant 9% | Scavenger-Tank 6% | Skirmisher 5% | Gunner Dominant Class ---------------- Mutant | -10/Materials Scavenger-Mutant | -9/Materials Scavenger-Mutant | -9/Storage Mutant | -8/Materials Mutant | -7/Factory Mutant | -7/Lower Caves Mutant | -7/Lower Caves Mutant | -7/Zion Mutant | -6/Proximity Caves Gunner | -6/Factory Gunner | -6/Waste Scavenger-Tank | -6/Factory Scavenger-Skirmisher | -6/Lower Caves Skirmisher | -6/Lower Caves Scavenger-Skirmisher | -5/Factory Scavenger-Gunner | -5/Extension Scavenger-Gunner | -5/Cetus Scavenger-Gunner | -5/Archives Scavenger-Tank | -5/Hub_04(d) Scavenger-Skirmisher | -4/Factory Scavenger-Skirmisher | -3/Research Resources | -11 -10 -9 -9 -8 -7 -7 -7 -7 -6 -6 -6 -6 -6 -6 -5 -5 -5 -5 -5 -4 -3 ----------- Run | Yrd Mat Mat Sto Mat Fac Low Low Zio Pro Fac Was Fac Low Low Fac Ext Cet Arc Hub Fac Res Matter Collected 6853 | 139 346 120 452 365 413 113 194 123 35 290 . 855 198 97 365 397 120 100 216 110 1805 Remotely . | . . . . . . . . . . . . . . . . . . . . . . Salvage Created 16866 | . 1086 346 1897 597 1402 118 85 . 156 443 . 4231 364 202 410 1719 149 308 430 91 2832 Parts 706 | . 74 13 91 36 55 2 5 . 7 19 . 150 16 10 22 63 5 19 24 3 92 Haulers Intercepted 15 | . 2 . 6 3 2 . . . . 2 . . . . . . . . . . . Recyclers Shooed 28 | . 1 . 4 . . . . . . 1 . 21 . . . 1 . . . . . Parts Field Recycled . | . . . . . . . . . . . . . . . . . . . . . . Retrieved Matter . | . . . . . . . . . . . . . . . . . . . . . . Parts Self-Destructed 23 | . . . . . . 2 6 1 5 . . . 3 6 . . . . . . . Prevented 1 | . . . . . . 1 . . . . . . . . . . . . . . . Parts Restored 1 | . . . . . . . . . . . . 1 . . . . . . . . . Broken 1 | . . . . . . . . . . . . 1 . . . . . . . . . Kills | -11 -10 -9 -9 -8 -7 -7 -7 -7 -6 -6 -6 -6 -6 -6 -5 -5 -5 -5 -5 -4 -3 ------- Run | Yrd Mat Mat Sto Mat Fac Low Low Zio Pro Fac Was Fac Low Low Fac Ext Cet Arc Hub Fac Res Combat Hostiles Destroyed 237 | . 25 8 24 15 18 4 6 . 7 4 . 29 9 4 11 17 2 . 6 1 47 Guns 128 | . 25 8 17 4 14 . 1 . 1 1 . 15 . 1 8 12 1 . 2 . 18 Cannons 26 | . . . 2 1 . . . . . 3 . 5 . . . 2 . . 3 . 10 AOE 55 | . . . 3 7 2 4 5 . 6 . . 1 9 3 3 . . . 1 . 11 Classes Destroyed 23 | . 9 1 1 1 2 . . . . . . 4 1 . . . . . . . 4 Worker 15 | . 1 . 2 1 1 . . . . 1 . 6 . . . . . . 1 . 2 Builder 12 | . 3 . . 2 . . . . . 1 . 4 . . . . . . . 1 1 Tunneler 2 | . 1 . . . 1 . . . . . . . . . . . . . . . . Hauler 15 | . 2 . 6 3 2 . . . . 2 . . . . . . . . . . . Recycler 29 | . 1 . 5 . 4 . . . . . . 15 . . . 4 . . . . . Mechanic 1 | . . . 1 . . . . . . . . . . . . . . . . . . Operator 15 | . 2 . 1 . 2 . . . . . . . . . 1 . . 9 . . . Watcher 6 | . 1 1 1 . 1 . . . . . . 1 . . . . . . . . 1 Swarmer 47 | . 9 1 3 8 1 . 5 . 4 . . . 5 . 8 . . . . . 3 Saboteur 1 | . . . . . . . . . . . . 1 . . . . . . . . . Grunt 98 | . 16 5 12 5 8 4 . . 3 2 . 10 3 3 1 8 . . 2 . 16 Brawler 10 | . . . . . 2 . . . . . . 5 . 1 1 . . . . . 1 Duelist 2 | . . . . . . . . . . . . 1 . . 1 . . . . . . Protector 1 | . . . . . . . . . . . . 1 . . . . . . . . . Sentry 26 | . . 2 9 1 2 . 1 . . . . . 1 . . 6 . . 1 1 2 Demolisher 3 | . . . . . . . . . . . . . . . . . . . . . 3 Hunter 19 | . . . . 1 3 . . . . . . 5 . . . 1 . . 1 . 8 Programmer 15 | . . . . . 2 . . . . 2 . 5 . . . 1 . . 2 . 3 Behemoth 2 | . . . . . . . . . . . . 1 . . . 1 . . . . . Cetus Guard 2 | . . . . . . . . . . . . . . . . . 2 . . . . Enhanced Grunt 1 | . . . . . . . . . . . . . . . . . . . 1 . . Striker 9 | . . . . . . . . . . . . . . . . . . . . . 9 Executioner 1 | . . . . . . . . . . . . . . . . . . . . . 1 Samaritan 4 | . . . . . . . . . . . . . 3 1 . . . . . . . Revision 1 | . . . . . . . . . . . . . . . . . . . . . 1 Best Kill Streak 12 | . 5 3 9 11 11 4 6 . 4 3 . 12 9 4 5 5 2 2 2 1 7 Combat Bots Only 9 | . 4 3 5 5 9 4 6 . 4 2 . 9 9 4 5 2 2 . 2 1 7 Max Kills in Single Turn 3 | . 2 1 2 3 2 2 2 . 2 1 . 2 3 1 2 1 1 1 2 1 2 Gunslinging 1 | . 1 . . . . . . . . . . . . . 1 . . . . . . Exploded 3 | . . . 1 3 1 2 2 . 2 . . 1 3 1 1 . . . 1 . 2 Melee . | . . . . . . . . . . . . . . . . . . . . . . Uniques/NPCs Destroyed . | . . . . . . . . . . . . . . . . . . . . . . Combat | -11 -10 -9 -9 -8 -7 -7 -7 -7 -6 -6 -6 -6 -6 -6 -5 -5 -5 -5 -5 -4 -3 -------- Run | Yrd Mat Mat Sto Mat Fac Low Low Zio Pro Fac Was Fac Low Low Fac Ext Cet Arc Hub Fac Res Hostile Shots Fired 1404 | . 108 26 114 56 147 3 51 . 18 6 . 270 15 8 39 71 15 . 26 4 427 Missed 448 | . 31 10 30 14 54 . 25 . 8 1 . 72 7 3 7 26 6 . 8 1 145 Hits 956 | . 77 16 84 42 93 3 26 . 10 5 . 198 8 5 32 45 9 . 18 3 282 Melee 60 | . . . . . 3 . . . . . . 7 . 1 . . . . . . 49 Projectile 896 | . 77 16 84 42 90 3 26 . 10 5 . 191 8 4 32 45 9 . 18 3 233 AOE 18 | . . . . . . . . . . . . . . . . . . . . . 18 Critical Strikes 51 | . . . 4 2 4 . . . . . . 14 . 1 . . 2 . . . 24 Part Disruptions 2 | . . . . . . . . . . . . . . . . . . . . . 2 Damage Taken 20060 | . 800 187 1055 573 1285 55 223 . 197 76 364 3660 120 244 485 998 183 25 702 50 8778 Core 2914 | . 234 33 166 51 219 . 5 . 41 . 52 490 21 29 65 123 15 . 65 . 1305 Absorbed by Shields 1238 | . . . . . . . . . . . . . . . . . 81 . . 17 1140 Ignored by Resistances 78 | . . . . . 18 . . . . . . 60 . . . . . . . . . Regen/Repaired (Parts) 452 | . . . 133 . 229 . . . . . . . . . 90 . . . . . . Core Remaining (%) 63 | 100 6 . 50 90 . . . . 62 . . . . 30 . . . . 73 100 . Volleys Fired 794 | . 104 28 104 46 67 2 8 . 16 13 13 150 8 6 18 47 6 27 13 10 108 Largest 4 | . 2 2 2 2 2 2 2 . 1 4 4 4 2 4 4 4 4 4 4 4 4 Hottest 482 | . 115 106 136 136 123 72 122 . 61 267 227 292 160 309 309 321 318 322 482 342 420 Shots Fired 1819 | . 185 56 190 83 125 5 16 . 16 48 29 377 16 17 53 168 24 107 38 16 250 Gun 1448 | . 185 56 166 32 112 . 6 . 6 35 16 327 8 11 50 158 24 107 21 4 124 Cannon 276 | . . . 14 46 5 . . . . 13 13 40 . . . 10 . . 17 12 106 Launcher 95 | . . . 10 5 8 5 10 . 10 . . 10 8 6 3 . . . . . 20 Special . | . . . . . . . . . . . . . . . . . . . . . . Kinetic 78 | . 57 . 21 . . . . . . . . . . . . . . . . . . Thermal 1600 | . 128 56 159 78 117 . 6 . 6 48 29 350 8 11 50 145 24 107 38 16 224 Explosive 76 | . . . 2 5 4 5 10 . 10 . . 10 8 6 3 . . . . . 13 Electromagnetic 65 | . . . 8 . 4 . . . . . . 17 . . . 23 . . . . 13 Robot Hit Streak 29 | . 8 17 29 14 12 3 3 . 6 13 25 18 5 5 12 19 13 8 11 12 15 Robot Miss Streak 10 | . 3 1 6 2 4 . 1 . 1 1 . 8 1 3 4 4 1 7 2 1 10 Penetration Max . | . . . . . . . . . . . . . . . . . . . . . . Secondary Targets 20 | . 6 . 5 . 3 . . . . . . 2 . . 3 . . . . . 1 Max Gunslinging Chain 2 | . 1 . 1 . 1 . . . . . . 1 . . 2 . . . . . 1 Shots Hit Robots 1157 | . 116 44 128 61 87 2 3 . 5 36 19 253 9 10 24 105 19 52 23 6 155 Core Hits 664 | . 56 17 60 24 51 9 9 . 14 14 2 127 18 12 21 47 11 25 13 3 131 Critical Kills 10 | . . . 1 2 . . . . . . . 2 1 . 1 2 . . . . 1 Critical Parts Destroyed 5 | . . . . . . . . . . . . . . . 1 4 . . . . . Critical Strikes 59 | . 7 3 5 5 10 . 1 . . 3 . 9 1 . 3 6 1 2 . 2 1 Burn 44 | . 7 3 4 3 10 . 1 . . 3 . 7 . . 1 . 1 2 . 2 . Meltdown 6 | . . . 1 2 . . . . . . . 2 . . . . . . . . 1 Destroy 9 | . . . . . . . . . . . . . 1 . 2 6 . . . . . Melee Attacks 1 | . . . . . . . . . . . . 1 . . . . . . . . . Impact 1 | . . . . . . . . . . . . 1 . . . . . . . . . Slashing . | . . . . . . . . . . . . . . . . . . . . . . Piercing . | . . . . . . . . . . . . . . . . . . . . . . Sneak Attacks 1 | . . . . . . . . . . . . 1 . . . . . . . . . Combat Hostiles . | . . . . . . . . . . . . . . . . . . . . . . Follow-up Attacks . | . . . . . . . . . . . . . . . . . . . . . . Damage Inflicted 35618 | . 1537 567 2210 1947 2117 390 471 . 763 962 423 6790 884 579 745 2628 489 1320 908 206 9682 Guns 21780 | . 1532 567 1641 494 1707 . 60 . 100 676 275 5274 145 162 520 2450 489 1320 341 95 3932 Cannons 5238 | . . . 188 794 82 . . . . 286 148 982 . . . 178 . . 455 111 2014 Explosions 8438 | . . . 367 636 321 390 411 . 663 . . 462 739 417 225 . . . 108 . 3699 Melee 71 | . . . . . . . . . . . . 71 . . . . . . . . . Ramming 91 | . 5 . 14 23 7 . . . . . . 1 . . . . . . 4 . 37 Kinetic 520 | . 286 . 234 . . . . . . . . . . . . . . . . . . Thermal 26288 | . 1246 567 1595 1288 1789 . 60 . 100 962 423 6042 145 162 520 2329 489 1320 904 206 6141 Explosive 6834 | . . . 49 528 272 390 411 . 663 . . 462 739 417 225 . . . . . 2678 Electromagnetic 1814 | . . . 318 108 49 . . . . . . 214 . . . 299 . . . . 826 Impact 71 | . . . . . . . . . . . . 71 . . . . . . . . . Slashing . | . . . . . . . . . . . . . . . . . . . . . . Piercing . | . . . . . . . . . . . . . . . . . . . . . . Highest Corruption 29 | . . . . . 5 5 5 5 . . 2 12 12 20 . 3 . 2 . . 29 Average Corruption 6 | . . . . . 2 5 5 5 . . 2 9 12 19 . 2 . 1 . . 5 Corruption Purged 13 | . . . . . . . . . . . . 4 . . . 3 . 3 . . 3 Corruption Blocked . | . . . . . . . . . . . . . . . . . . . . . . Effects 174 | . . . . . 7 12 27 1 . . 1 52 21 5 . 12 . . . . 36 Message Errors 39 | . . . . . 4 2 4 1 . . . 13 7 . . 1 . . . . 7 Matter Fused 43 | . . . . . 2 1 6 . . . . 12 5 1 . 5 . . . . 11 Heat Flow Errors 22 | . . . . . . 3 4 . . . . 6 4 . . 1 . . . . 4 Energy Discharges 19 | . . . . . . 1 6 . . . 1 6 3 . . 1 . . . . 1 Parts Rejected 1 | . . . . . . . . . . . . . . . . . . . . . 1 Parts Fused 2 | . . . . . . . 1 . . . . 1 . . . . . . . . . Data Loss (minor) 17 | . . . . . 1 2 5 . . . . 5 . 1 . . . . . . 3 Data Loss (major) 8 | . . . . . . . 1 . . . . 2 . 1 . . . . . . 4 Misfires 8 | . . . . . . 1 . . . . . 1 . 2 . 1 . . . . 3 Alerts 7 | . . . . . . 2 . . . . . 2 2 . . 1 . . . . . Weapon Failures 8 | . . . . . . . . . . . . 4 . . . 2 . . . . 2 Overload Shots 7 | . . . . . 1 . . . . 3 2 . . . . . . . 1 . . Overflow Damage 609 | . . . 20 81 . . 118 . 3 . . 63 . 16 . . . . 19 . 289 Projectiles 116 | . . . 13 31 . . . . . . . 16 . . . . . . 1 . 55 Explosions 451 | . . . 7 50 . . 118 . 3 . . 6 . 16 . . . . 18 . 233 Melee 42 | . . . . . . . . . . . . 41 . . . . . . . . 1 Knockbacks . | . . . . . . . . . . . . . . . . . . . . . . Impact . | . . . . . . . . . . . . . . . . . . . . . . Kinetic . | . . . . . . . . . . . . . . . . . . . . . . Secondary . | . . . . . . . . . . . . . . . . . . . . . . Self-Inflicted Damage 1014 | . . . 55 24 87 . 14 . 25 . . . 42 130 . . . . 43 . 594 Shots 25 | . . . 1 1 2 . 1 . 1 . . . 1 3 . . . . 1 . 14 Rammed . | . . . . . . . . . . . . . . . . . . . . . . Targets Rammed 10 | . 2 . 2 1 1 . . . . . . 1 . . . . . . 1 . 2 Kicked 10 | . 2 . 2 1 1 . . . . . . 1 . . . . . . 1 . 2 Crushed . | . . . . . . . . . . . . . . . . . . . . . . Highest Temperature 569 | . 457 262 426 334 199 162 210 . 119 197 198 404 247 396 569 291 341 294 369 324 446 Average Temperature 103 | . 119 96 106 122 73 63 78 . 54 89 118 88 86 149 193 94 159 107 122 74 97 Received Heat Transfer 3146 | . 261 99 375 162 396 27 48 . 36 . . 925 18 36 18 225 4 . 54 12 450 Effects 31 | . 10 . 7 . . . . . . . . 1 . . 7 . 1 2 . . 3 Shutdowns 7 | . 1 . 3 . . . . . . . . . . . . . 1 . . . 2 Energy Bleed 4 | . 1 . . . . . . . . . . 1 . . . . . 1 . . 1 Interference 8 | . 4 . 3 . . . . . . . . . . . . . . 1 . . . Matter Decay 1 | . 1 . . . . . . . . . . . . . . . . . . . . Short Circuit 1 | . . . 1 . . . . . . . . . . . . . . . . . . Damage (minor) 2 | . . . . . . . . . . . . . . . 2 . . . . . . Damage (major) 8 | . 3 . . . . . . . . . . . . . 5 . . . . . . Siege Activations . | . . . . . . . . . . . . . . . . . . . . . . Martial Activations . | . . . . . . . . . . . . . . . . . . . . . . Shielding Activations . | . . . . . . . . . . . . . . . . . . . . . . Robots Disrupted . | . . . . . . . . . . . . . . . . . . . . . . Combat Hostiles . | . . . . . . . . . . . . . . . . . . . . . . Robots Corrupted 7 | . . . 1 . . . . . . . . 1 . . . . . . . . 5 Combat Hostiles 5 | . . . 1 . . . . . . . . . . . . . . . . . 4 Parts Fried 12 | . . . 1 . . . . . . . . 1 . . . . . . 1 . 9 Impact Corruptions 3 | . . . . . . . . . . . . 2 . . . . . . . . 1 Robots Melted 25 | . . . 1 3 2 . . . . . . 10 . . . 3 1 . . 1 4 Combat Hostiles 23 | . . . 1 3 2 . . . . . . 8 . . . 3 1 . . 1 4 Parts Melted 141 | . 6 7 13 6 15 . . . 1 9 . 42 1 . 1 22 2 3 1 4 8 Heat Transferred 44811 | . 3774 1742 4034 2516 3922 . 185 . 185 1704 703 10379 222 259 925 3515 851 2183 544 296 6872 Parts Sabotaged 3 | . . . . . . . . . . . . 3 . . . . . . . . . Parts Stolen . | . . . . . . . . . . . . . . . . . . . . . . Parts Stripped . | . . . . . . . . . . . . . . . . . . . . . . Power Chain Reactions 3 | . . . . . . . . . . . . . . . . . . . 1 . 2 Alert | -11 -10 -9 -9 -8 -7 -7 -7 -7 -6 -6 -6 -6 -6 -6 -5 -5 -5 -5 -5 -4 -3 ------- Run | Yrd Mat Mat Sto Mat Fac Low Low Zio Pro Fac Was Fac Low Low Fac Ext Cet Arc Hub Fac Res Maximum Alert Level 5 | . 1 1 2 2 1 . . . . 1 . 2 . . 1 1 1 . 5 3 3 Low Security (%) 52 | 100 27 81 31 43 62 . . . . 98 100 36 . . 80 98 99 100 33 . 18 Level 1 33 | . 72 18 61 52 37 . . . . 1 . 32 . . 19 1 . . 4 . 56 Level 2 10 | . . . 6 4 . . . . . . . 30 . . . . . . 11 41 19 Level 3 3 | . . . . . . . . . . . . . . . . . . . 26 58 5 Level 4 . | . . . . . . . . . . . . . . . . . . . 9 . . Level 5 . | . . . . . . . . . . . . . . . . . . . 14 . . High Security . | . . . . . . . . . . . . . . . . . . . . . . Max Security . | . . . . . . . . . . . . . . . . . . . . . . Peak Influence 1853 | . 337 243 418 414 298 . . . . 206 66 512 . . 249 266 204 161 1853 889 853 Initial 889 | . . 78 102 172 77 . . . . . 66 . . . 137 84 81 40 . 889 213 Average 231 | . 216 142 274 220 125 . . . . 25 19 288 . . 133 88 114 71 739 671 322 Influence Increases 11324 | . 743 305 856 512 639 90 130 . 160 364 2 1314 190 90 364 931 393 322 2197 53 1669 Destroy 0b10 Robot/C 5760 | . 500 160 480 300 360 80 120 . 140 80 . 560 180 80 220 480 160 80 840 20 920 Destroy 0b10 Robot/NC 500 | . 55 5 80 30 55 . . . . 20 . 135 . . 5 25 10 45 10 5 20 Destroy Leader 1196 | . 116 62 174 66 96 10 10 . 20 24 . 142 10 10 30 42 . . 172 10 202 Allied During Kill 1417 | . . . . . . . . . . . . . . . . 267 168 115 867 . . Successful Hack 235 | . 27 17 7 39 74 . . . . 38 . 21 . . . 12 . . . . . Select Force Hacks 130 | . . 30 . . . . . . . . . . . . . . . . 100 . . Disable Machine 420 | . . . 75 45 15 . . . . . . 45 . . 30 30 15 60 60 . 45 Anti-Garrison Action 750 | . . . . . . . . . . 200 . 350 . . . . . . . . 200 Destroy Structure 691 | . . 1 25 32 24 . . . . 2 2 61 . . 34 30 40 22 118 18 282 Partial Spotted 15 | . . . . . . . . . . . . . . . . . . . 15 . . Lose Combat Pursuer 210 | . 45 30 15 . 15 . . . . . . . . . 45 45 . . 15 . . Influence Decreases 10503 | . 558 247 689 750 539 291 155 46 160 174 192 814 407 155 409 958 439 422 380 1462 1256 Entered New Map 2525 | . . 107 141 238 95 101 15 46 . . 124 . 185 55 81 89 65 60 . 928 195 Time Decay 6121 | . 528 140 478 362 424 180 140 . 160 174 51 654 222 60 278 519 294 282 260 214 701 Lost Part 797 | . 30 . 70 . 20 10 . . . . 17 160 . 40 50 40 . . . . 360 Lost Ally 460 | . . . . . . . . . . . . . . . . 160 80 80 120 20 . Purge Threat 600 | . . . . 150 . . . . . . . . . . . 150 . . . 300 . Squads Dispatched 79 | . 7 3 6 2 9 . . . . 4 . 15 . . 7 1 . . 14 3 8 Investigation 36 | . 5 2 3 1 5 . . . . 1 . 6 . . 2 . . . 7 1 3 Extermination 11 | . . . . . 2 . . . . 2 . 4 . . 1 . . . 1 1 . Reinforcement 23 | . 2 1 3 1 2 . . . . 1 . 3 . . 1 1 . . 3 . 5 Assault 4 | . . . . . . . . . . . . 2 . . . . . . 1 1 . Garrison 5 | . . . . . . . . . . . . . . . 3 . . . 2 . . Intercept . | . . . . . . . . . . . . . . . . . . . . . . Searches Triggered . | . . . . . . . . . . . . . . . . . . . . . . Unchained Authorized 1 | . . . . . . . . . . . . . . . . . . . . 1 . Construction Impeded 5 | . . . . 1 1 . . . . . . 2 . . . . . . 1 . . Haulers Reinforced 2 | . . . . . . . . . . 1 . . . . . . . . . . 1 Active Scanning Responses . | . . . . . . . . . . . . . . . . . . . . . . Cargo Convoy Interrupts . | . . . . . . . . . . . . . . . . . . . . . . Stealth | -11 -10 -9 -9 -8 -7 -7 -7 -7 -6 -6 -6 -6 -6 -6 -5 -5 -5 -5 -5 -4 -3 --------- Run | Yrd Mat Mat Sto Mat Fac Low Low Zio Pro Fac Was Fac Low Low Fac Ext Cet Arc Hub Fac Res Distress Signals 32 | . 2 . 5 1 1 . . . . 1 . 4 . . 1 1 2 . 6 . 8 Communications Jammed . | . . . . . . . . . . . . . . . . . . . . . . Distress Signals . | . . . . . . . . . . . . . . . . . . . . . . Times Spotted 381 | . 39 11 30 18 25 3 6 . 7 6 10 51 9 3 13 29 9 20 27 2 63 Peak Tracking Total 10 | . 4 4 7 6 4 4 3 . 3 3 6 6 5 3 5 3 5 1 10 1 6 Tactical Retreats 11 | . 2 1 1 . 1 . . . . . 1 . . . 1 3 . . 1 . . Traps | -11 -10 -9 -9 -8 -7 -7 -7 -7 -6 -6 -6 -6 -6 -6 -5 -5 -5 -5 -5 -4 -3 ------- Run | Yrd Mat Mat Sto Mat Fac Low Low Zio Pro Fac Was Fac Low Low Fac Ext Cet Arc Hub Fac Res Traps Triggered 16 | . 2 . 2 . 5 . . . . 1 . 1 . . . 3 . . . . 2 Indirectly 3 | . . . . . 3 . . . . . . . . . . . . . . . . Trap Hack Attempts . | . . . . . . . . . . . . . . . . . . . . . . Triggered . | . . . . . . . . . . . . . . . . . . . . . . Disarmed . | . . . . . . . . . . . . . . . . . . . . . . Reprogrammed . | . . . . . . . . . . . . . . . . . . . . . . Reused . | . . . . . . . . . . . . . . . . . . . . . . Traps Extracted . | . . . . . . . . . . . . . . . . . . . . . . Installed . | . . . . . . . . . . . . . . . . . . . . . . Triggered . | . . . . . . . . . . . . . . . . . . . . . . Machines | -11 -10 -9 -9 -8 -7 -7 -7 -7 -6 -6 -6 -6 -6 -6 -5 -5 -5 -5 -5 -4 -3 ---------- Run | Yrd Mat Mat Sto Mat Fac Low Low Zio Pro Fac Was Fac Low Low Fac Ext Cet Arc Hub Fac Res Machines Disabled 29 | . . . 5 3 1 . . . . . . 4 . . 2 2 1 4 4 . 3 Max in Single Turn 2 | . . . 2 1 1 . . . . . . 1 . . 1 1 1 1 1 . 1 Garrison Access 7 | . . . . 1 . . . . . 1 . 2 . . . . . . . . 3 Network Hub 4 | . . . . . . . . . . . . . . . . . . . 4 . . Machines Repaired . | . . . . . . . . . . . . . . . . . . . . . . Machines Dismantled 3 | . . . . . . . . . . . . . . . . 2 1 . . . . Machines Sabotaged 2 | . . . . . . . . . . . . . . . . . . . 2 . . Overloaded Fab Kills . | . . . . . . . . . . . . . . . . . . . . . . Hacking | -11 -10 -9 -9 -8 -7 -7 -7 -7 -6 -6 -6 -6 -6 -6 -5 -5 -5 -5 -5 -4 -3 --------- Run | Yrd Mat Mat Sto Mat Fac Low Low Zio Pro Fac Was Fac Low Low Fac Ext Cet Arc Hub Fac Res Machines Accessed 56 | . 5 3 6 8 10 . . . . 4 . 8 . . 2 1 . . 5 1 3 Terminals 34 | . 5 1 5 7 6 . . . . 3 . . . . . 1 . . 5 1 . Fabricators 5 | . . . . . . . . . . . . 3 . . 1 . . . . . 1 Repair Stations 5 | . . . 1 . 3 . . . . . . . . . 1 . . . . . . Recycling Units 2 | . . 1 . . . . . . . . . 1 . . . . . . . . . Scanalyzers 4 | . . 1 . . 1 . . . . . . 2 . . . . . . . . . Garrison Access 6 | . . . . 1 . . . . . 1 . 2 . . . . . . . . 2 Total Hacks 176 | . 17 12 22 23 29 . . . . 8 . 30 . . 8 2 . . 12 7 6 Successful 86 | . 6 7 7 11 17 . . . . 6 . 13 . . 3 2 . . 7 3 4 Failed 88 | . 11 4 15 11 12 . . . . 2 . 17 . . 5 . . . 5 4 2 Catastrophic 15 | . 1 . 2 3 4 . . . . . . 2 . . 1 . . . . 2 . Database Lockouts 2 | . . 1 . 1 . . . . . . . . . . . . . . . . . Manual 74 | . 15 7 3 15 9 . . . . 8 . 1 . . 1 . 1 . 12 . 2 Terminals 104 | . 17 7 16 21 16 . . . . 6 . . . . . 2 . . 12 7 . Fabricators 15 | . . . . . . . . . . . . 9 . . 3 . . . . . 3 Repair Stations 21 | . . . 6 . 10 . . . . . . . . . 5 . . . . . . Recycling Units 4 | . . 2 . . . . . . . . . 2 . . . . . . . . . Scanalyzers 20 | . . 3 . . 3 . . . . . . 14 . . . . . . . . . Garrison Access 12 | . . . . 2 . . . . . 2 . 5 . . . . . . . . 3 Terminal Hacks 25 | . 5 5 3 5 2 . . . . . . . . . . 2 . . . 3 . Part Schematic 8 | . 4 2 . 1 1 . . . . . . . . . . . . . . . . Robot Analysis 5 | . . 2 1 2 . . . . . . . . . . . . . . . . . Open Door 2 | . . . 2 . . . . . . . . . . . . . . . . . . Alert Level 1 | . . . . . . . . . . . . . . . . . . . . 1 . Unreport Threat 4 | . . . . 1 . . . . . . . . . . . 1 . . . 2 . Locate Traps 2 | . . . . . 1 . . . . . . . . . . 1 . . . . . Patrol Status 1 | . . . . 1 . . . . . . . . . . . . . . . . . Hauler Manifests 1 | . . 1 . . . . . . . . . . . . . . . . . . . Zone Layout 1 | . 1 . . . . . . . . . . . . . . . . . . . . Fabricator Hacks 5 | . . . . . . . . . . . . 2 . . 1 . . . . . 2 Load Schematic 3 | . . . . . . . . . . . . 1 . . 1 . . . . . 1 Build 2 | . . . . . . . . . . . . 1 . . . . . . . . 1 Repair Station Hacks 13 | . . . 4 . 7 . . . . . . . . . 2 . . . . . . Scan Component 7 | . . . 2 . 4 . . . . . . . . . 1 . . . . . . Repair 6 | . . . 2 . 3 . . . . . . . . . 1 . . . . . . Recycling Unit Hacks . | . . . . . . . . . . . . . . . . . . . . . . Scanalyzer 14 | . . 1 . . 3 . . . . . . 10 . . . . . . . . . Insert Component 6 | . . 1 . . 1 . . . . . . 4 . . . . . . . . . Analyze 8 | . . . . . 2 . . . . . . 6 . . . . . . . . . Garrison Access Hacks 2 | . . . . 1 . . . . . . . . . . . . . . . . 1 Seal Access 2 | . . . . 1 . . . . . . . . . . . . . . . . 1 Unauthorized Hacks 27 | . 1 1 . 5 5 . . . . 6 . 1 . . . . . . 7 . 1 Terminals 23 | . 1 . . 5 5 . . . . 5 . . . . . . . . 7 . . Track 5 | . . . . 1 3 . . . . 1 . . . . . . . . . . . Botnet 10 | . 1 . . 4 2 . . . . 3 . . . . . . . . . . . Operators 1 | . . . . . . . . . . 1 . . . . . . . . . . . Sabotage 7 | . . . . . . . . . . . . . . . . . . . 7 . . Fabricators . | . . . . . . . . . . . . . . . . . . . . . . Repair Stations . | . . . . . . . . . . . . . . . . . . . . . . Recycling Units 1 | . . 1 . . . . . . . . . . . . . . . . . . . Tunnel 1 | . . 1 . . . . . . . . . . . . . . . . . . . Scanalyzers . | . . . . . . . . . . . . . . . . . . . . . . Garrison Access 3 | . . . . . . . . . . 1 . 1 . . . . . . . . 1 Jam 3 | . . . . . . . . . . 1 . 1 . . . . . . . . 1 Data Cores Recovered . | . . . . . . . . . . . . . . . . . . . . . . Used . | . . . . . . . . . . . . . . . . . . . . . . Hacking Detections 45 | . 5 2 4 7 9 . . . . 4 . 7 . . 2 1 1 . 1 1 1 Full Trace Events 24 | . 5 1 3 2 5 . . . . . . 5 . . 2 . . . . . 1 Feedback Events 1 | . . . . . 1 . . . . . . . . . . . . . . . . Corruption 1 | . . . . . 1 . . . . . . . . . . . . . . . . Feedback Blocked . | . . . . . . . . . . . . . . . . . . . . . . Robot Schematics Acquired . | . . . . . . . . . . . . . . . . . . . . . . Robots Built . | . . . . . . . . . . . . . . . . . . . . . . Authchips . | . . . . . . . . . . . . . . . . . . . . . . Time . | . . . . . . . . . . . . . . . . . . . . . . Total Robot Build Rating . | . . . . . . . . . . . . . . . . . . . . . . Part Schematics Acquired 12 | . 4 2 . 1 2 . . . . . . 3 . . . . . . . . . Parts Built 4 | . . . . . . . . . . . . 2 . . . . . . . . 2 Authchips . | . . . . . . . . . . . . . . . . . . . . . . Time 188 | . . . . . . . . . . . . 152 . . . . . . . . 36 Total Part Build Rating 16 | . . . . . . . . . . . . 10 . . . . . . . . 6 Part Studies Acquired . | . . . . . . . . . . . . . . . . . . . . . . Parts Repaired 6 | . . . 2 . 3 . . . . . . . . . 1 . . . . . . Time 262 | . . . 52 . 130 . . . . . . . . . 80 . . . . . . Parts Recycled . | . . . . . . . . . . . . . . . . . . . . . . Recycled Matter . | . . . . . . . . . . . . . . . . . . . . . . Retrieved Matter . | . . . . . . . . . . . . . . . . . . . . . . Retrieved Components . | . . . . . . . . . . . . . . . . . . . . . . Parts Scanalyzed 6 | . . 1 . . 1 . . . . . . 4 . . . . . . . . . Part Schematics Acquired 4 | . . . . . 1 . . . . . . 3 . . . . . . . . . Parts Damaged . | . . . . . . . . . . . . . . . . . . . . . . Bothacking | -11 -10 -9 -9 -8 -7 -7 -7 -7 -6 -6 -6 -6 -6 -6 -5 -5 -5 -5 -5 -4 -3 ------------ Run | Yrd Mat Mat Sto Mat Fac Low Low Zio Pro Fac Was Fac Low Low Fac Ext Cet Arc Hub Fac Res Used RIF Installer . | . . . . . . . . . . . . . . . . . . . . . . Robots Hacked . | . . . . . . . . . . . . . . . . . . . . . . Non-combat . | . . . . . . . . . . . . . . . . . . . . . . Combat . | . . . . . . . . . . . . . . . . . . . . . . Robot Hacks Applied . | . . . . . . . . . . . . . . . . . . . . . . Relay Couplers Released 5 | . . . . . . . . . . . . 4 . . . . . . . . 1 Machine Destruction 2 | . . . . . . . . . . . . 1 . . . . . . . . 1 Programmers 3 | . . . . . . . . . . . . 3 . . . . . . . . . Fabnet Peak Effective % . | . . . . . . . . . . . . . . . . . . . . . . Robots Rewired 15 | . . . . . . . . . . . . . . . . 15 . . . . . Allies Hacked . | . . . . . . . . . . . . . . . . . . . . . . Hacks Repelled . | . . . . . . . . . . . . . . . . . . . . . . Allies | -11 -10 -9 -9 -8 -7 -7 -7 -7 -6 -6 -6 -6 -6 -6 -5 -5 -5 -5 -5 -4 -3 -------- Run | Yrd Mat Mat Sto Mat Fac Low Low Zio Pro Fac Was Fac Low Low Fac Ext Cet Arc Hub Fac Res Total Allies 28 | . . . . . . . . . . . . . . . . 23 5 . . . . Largest Group 18 | . . . . . . . . . . . . . . . . 18 15 15 10 1 . Highest-Rated Group 928 | . . . . . . . . . . . . . . . . 577 928 928 659 34 . Highest-Rated Ally 159 | . . . . . . . . . . . . . . . . 159 159 159 96 34 . Total Orders 10 | . . . . . . . . . . . . 1 . . 1 3 . 2 2 . 1 STAY 1 | . . . . . . . . . . . . . . . . . . 1 . . . FOLLOW 1 | . . . . . . . . . . . . . . . . . . 1 . . . RETURN 8 | . . . . . . . . . . . . 1 . . 1 3 . . 2 . 1 Ally Attacks 372 | . . . . . . . . . . . . . . . . 78 53 41 200 . . Total Damage 8550 | . . . . . . . . . . . . . . . . 1412 1705 1065 4368 . . Kills 59 | . . . . . . . . . . . . . . . . 9 8 4 38 . . Allies Corrupted . | . . . . . . . . . . . . . . . . . . . . . . Allies Melted 1 | . . . . . . . 1 . . . . . . . . . . . . . . Intel | -11 -10 -9 -9 -8 -7 -7 -7 -7 -6 -6 -6 -6 -6 -6 -5 -5 -5 -5 -5 -4 -3 ------- Run | Yrd Mat Mat Sto Mat Fac Low Low Zio Pro Fac Was Fac Low Low Fac Ext Cet Arc Hub Fac Res Active Infowar (turns) 10913 | . . . . 55 914 370 1094 1116 736 707 26 1172 476 133 514 49 . 233 240 318 2760 Sensors 9437 | . . . . . 232 368 1094 1116 736 705 21 719 448 133 509 49 . 232 236 317 2522 IFF 1 | . . . . . . . . . . . . 1 . . . . . . . . . Terrain 63 | . . . . . . . . . . . . . . . . . . . . . 63 Structural 5593 | . . . . 55 783 197 . . . 205 26 453 476 133 459 48 . 233 240 278 2007 Robot Analysis Total 5 | . . 2 1 2 . . . . . . . . . . . . . . . . . Derelict Logs Recovered 1 | . . . . . . 1 . . . . . . . . . . . . . . . Drone Launches 8 | . . . . . . . . . . . . 1 . . 1 3 . . 2 . 1 Drone Recoveries 8 | . . . . . . . . . . . . 1 . . 1 3 . . 2 . 1 Exploration | -11 -10 -9 -9 -8 -7 -7 -7 -7 -6 -6 -6 -6 -6 -6 -5 -5 -5 -5 -5 -4 -3 ------------- Run | Yrd Mat Mat Sto Mat Fac Low Low Zio Pro Fac Was Fac Low Low Fac Ext Cet Arc Hub Fac Res Turns Passed 21033 | 66 1716 285 1222 820 1467 370 1144 1116 736 753 240 2423 476 133 600 2063 659 658 633 441 3012 Spaces Moved 11367 | 48 594 142 616 505 859 266 649 895 532 503 162 1022 235 60 311 842 247 296 306 320 1957 Core 3 | 3 . . . . . . . . . . . . . . . . . . . . . Treads . | . . . . . . . . . . . . . . . . . . . . . . Legs 11364 | 45 594 142 616 505 859 266 649 895 532 503 162 1022 235 60 311 842 247 296 306 320 1957 Wheels . | . . . . . . . . . . . . . . . . . . . . . . Hover . | . . . . . . . . . . . . . . . . . . . . . . Flight . | . . . . . . . . . . . . . . . . . . . . . . Fastest Speed 50 | 50 120 120 120 120 120 122 122 122 127 120 120 120 190 190 120 120 190 120 120 120 111 Average Speed 143 | 115 227 120 120 120 121 133 171 122 127 125 120 158 190 190 122 182 190 172 170 120 116 Slowest Speed 330 | 120 330 120 190 120 190 192 192 127 127 190 120 192 190 190 190 190 190 190 190 120 190 Overloaded Moves . | . . . . . . . . . . . . . . . . . . . . . . Propulsion Burnouts . | . . . . . . . . . . . . . . . . . . . . . . Robots Hopped . | . . . . . . . . . . . . . . . . . . . . . . Potential Cave-ins 9 | . . . . . . . . . 2 . 7 . . . . . . . . . . Cave-ins Triggered 2 | . . . . . . . . . . . 1 . . . . . . . . . 1 Exploration Rate (%) 46 | 4 91 15 68 40 24 44 68 78 60 17 78 20 47 12 10 84 67 87 42 8 56 Regions Visited 21 Branch Regions 11 Pre-discovered Areas 4 | . . 1 1 . . 1 . 1 . . . . . . . . . . . . . Known Exits Taken 14 | . . . . . 1 1 1 1 1 . . 1 1 1 1 1 1 1 1 1 . Unknown Exits Taken 5 | 1 1 1 1 1 . . . . . . . . . . . . . . . . . Scrap Searched 9 | . . . . . . 2 3 3 1 . . . . . . . . . . . . Spaces Dug 61 | . . . . . . . . . . . 10 36 . . . . . . 2 5 8 Terrain Destroyed 671 | . . . 19 41 20 40 93 . 68 2 10 81 30 71 14 5 . 7 7 9 154 Melee . | . . . . . . . . . . . . . . . . . . . . . . Projectile 82 | . . . . . . . . . . 2 10 3 . . . 5 . 7 5 9 41 AOE 589 | . . . 19 41 20 40 93 . 68 . . 78 30 71 14 . . . 2 . 113 Terrain Rammed . | . . . . . . . . . . . . . . . . . . . . . . Walls Destroyed . | . . . . . . . . . . . . . . . . . . . . . . Machines Disabled . | . . . . . . . . . . . . . . . . . . . . . . Actions | -11 -10 -9 -9 -8 -7 -7 -7 -7 -6 -6 -6 -6 -6 -6 -5 -5 -5 -5 -5 -4 -3 --------- Run | Yrd Mat Mat Sto Mat Fac Low Low Zio Pro Fac Was Fac Low Low Fac Ext Cet Arc Hub Fac Res Total 14494 | 55 784 206 909 641 1152 277 662 914 576 590 183 1511 247 68 483 1257 420 384 391 358 2426 Wait 1231 | . 47 14 106 19 159 . 1 . 29 39 3 207 . . 119 104 126 44 28 16 170 Move 11346 | 47 593 141 615 504 858 265 648 894 531 503 160 1021 234 59 310 841 246 295 305 319 1957 Hop . | . . . . . . . . . . . . . . . . . . . . . . Pick Up 145 | 2 11 5 15 18 11 1 . 2 . 3 1 19 1 . 5 9 9 3 4 2 24 Fast Attach 136 | 6 3 1 9 4 8 . . 4 . 6 1 27 . . 6 6 2 5 5 . 43 Attach 76 | . 2 3 8 2 4 1 . . . 3 1 17 1 2 6 4 . 1 1 2 18 Detach 6 | . . . . . . . . . . 1 . 3 . 1 1 . . . . . . Swap 274 | . 12 6 20 24 25 6 5 4 . 12 3 27 3 . 15 26 10 4 16 9 47 Drop 265 | . 10 8 25 23 19 2 . 10 . 10 . 38 . . 3 24 13 5 18 . 57 Fire 794 | . 104 28 104 46 67 2 8 . 16 13 13 150 8 6 18 47 6 27 13 10 108 Melee 1 | . . . . . . . . . . . . 1 . . . . . . . . . Ram . | . . . . . . . . . . . . . . . . . . . . . . Kick 10 | . 2 . 2 1 1 . . . . . . 1 . . . . . . 1 . 2 Crush . | . . . . . . . . . . . . . . . . . . . . . . Escape Stasis 21 | . . . 5 . . . . . . . 1 . . . . 15 . . . . . Rewire 165 | . . . . . . . . . . . . . . . . 165 . . . . . Trap . | . . . . . . . . . . . . . . . . . . . . . . Miscellaneous 24 | . . . . . . . . . . . . . . . . 16 8 . . . . Route ------- -11/Scrapyard -10/Materials (discovered 4 exits: *Mat x2 / [*Min] / [*Sub]) -9/Materials -9/Storage -8/Materials -7/Factory (discovered 2 exits: *Fac / *Low) -7/Lower Caves -7/Lower Caves -7/Zion -6/Proximity Caves -6/Factory -6/Waste -6/Factory (discovered 5 exits: *Fac x4 / *Low) -6/Lower Caves -6/Lower Caves -5/Factory -5/Extension (discovered 2 exits: *Fac / *Cet) -5/Cetus (discovered 2 exits: *Fac / *Arc) -5/Archives (discovered 3 exits: *Fac / *Hub x2) -5/Hub_04(d) (discovered 4 exits: *Fac x4) -4/Factory -3/Research (discovered 4 exits: *Res x3 / *Arm) History --------- Turn | Location | Event 4 | -11/Scrapyard | Discovered new exit (range 16) 67 | -11/Scrapyard | Entered Materials 316 | -10/Materials | Build established: Mutant 415 | -10/Materials | Core integrity fell below 50% 526 | -10/Materials | Discovered new exit (range 16) 600 | -10/Materials | Discovered new exit (range 12) 825 | -10/Materials | Build established: Scavenger-Mutant 960 | -10/Materials | Discovered new exit (range 6) 977 | -10/Materials | Discovered new exit (range 16) 1042 | -10/Materials | Core integrity fell below 20% 1334 | -10/Materials | Build established: Mutant 1783 | -10/Materials | Entered another Materials area 1783 | -9/Materials | Evolved 2 slots: Propulsion x2 1805 | -9/Materials | Central database locked down 2003 | -9/Materials | Discovered new exit (range 7) 2058 | -9/Materials | Build established: Scavenger-Mutant 2068 | -9/Materials | Entered Storage 2318 | -9/Storage | Learned location of Armory (-3) 3134 | -9/Storage | Repaired Aluminum Leg 3161 | -9/Storage | Repaired Aluminum Leg 3263 | -9/Storage | Discovered new exit (range 14) 3290 | -9/Storage | Entered Materials 3290 | -8/Materials | Evolved 2 slots: Utility x2 3320 | -8/Materials | Build established: Mutant 3738 | -8/Materials | Discovered new exit (range 15) 3911 | -8/Materials | Central database locked down 4110 | -8/Materials | Entered Factory 4110 | -7/Factory | Evolved 2 slots: Utility x2 4464 | -7/Factory | Repaired Imp. Aluminum Leg 4836 | -7/Factory | Discovered new exit (range 15) 4877 | -7/Factory | Identified exit to Factory 5086 | -7/Factory | Destroyed 9 combat bots 5344 | -7/Factory | Repaired Reflective Plating 5405 | -7/Factory | Repaired Adv. Beam Rifle 5542 | -7/Factory | Discovered new exit (range 15) 5560 | -7/Factory | Identified exit to Lower Caves 5577 | -7/Factory | Entered Lower Caves 5653 | -7/Lower Caves | Learned location of Zion (-7) 5918 | -7/Lower Caves | Discovered new exit (range 14) 5941 | -7/Lower Caves | Identified exit to Lower Caves 5947 | -7/Lower Caves | Entered another Lower Caves area 6838 | -7/Lower Caves | Attracted the attention of an 0b10 checkpoint 7020 | -7/Lower Caves | Discovered new exit (range 11) 7048 | -7/Lower Caves | Identified exit to Zion 7091 | -7/Lower Caves | Entered Zion 7229 | -7/Zion | System corruption cleaned by Quarantine Array 7258 | -7/Zion | Discovered new exit (range 12) 7272 | -7/Zion | Identified exit to Proximity Caves 7468 | -7/Zion | Received a visual enhancement algorithm 7641 | -7/Zion | Given the Hacking Drone Bay 7641 | -7/Zion | Found Prototype Device 7697 | -7/Zion | Found Prototype Energy Gun 8207 | -7/Zion | Entered Proximity Caves 8490 | -6/Proximity Caves | Spotted B-75 Beast 8773 | -6/Proximity Caves | Discovered exit to Factory (range 7) 8943 | -6/Proximity Caves | Entered Factory 8943 | -6/Factory | Evolved 2 slots: Weapon x2 8945 | -6/Factory | Identified Storm Laser 9234 | -6/Factory | Build established: Gunner 9696 | -6/Factory | Sucked down chute 9696 | -6/Factory | Entered Waste 9714 | -6/Waste | Spotted C-40 Crusher 9727 | -6/Waste | Spotted C-40 Crusher 9756 | -6/Waste | Spotted C-40 Crusher 9756 | -6/Waste | Spotted C-40 Crusher 9757 | -6/Waste | Spotted C-40 Crusher 9800 | -6/Waste | Crushed by falling debris 9860 | -6/Waste | Spotted C-40 Crusher 9921 | -6/Waste | Discovered new exit (range 10) 9935 | -6/Waste | Identified exit to Factory 9936 | -6/Waste | Entered Factory 10211 | -6/Factory | Identified Hacking Drone Bay 10217 | -6/Factory | Identified exit to Factory 10748 | -6/Factory | Build established: Skirmisher 11011 | -6/Factory | Lost 7 parts (1n2u4w) 11024 | -6/Factory | Destroyed 9 combat bots 11188 | -6/Factory | Spotted B-75 Beast 11200 | -6/Factory | Destroyed B-75 Beast 11487 | -6/Factory | System corruption reached 10% 11493 | -6/Factory | Core integrity fell below 50% 11678 | -6/Factory | Fabricated Force Rifle? 11851 | -6/Factory | Build established: Scavenger-Tank 12206 | -6/Factory | Discovered new exit (range 4) 12211 | -6/Factory | Identified exit to Lower Caves 12359 | -6/Factory | Entered Lower Caves 12361 | -6/Lower Caves | Attracted the attention of an 0b10 checkpoint 12402 | -6/Lower Caves | Destroyed 9 combat bots 12693 | -6/Lower Caves | Build established: Scavenger-Skirmisher 12712 | -6/Lower Caves | Entered a destroyed Warlord outpost 12812 | -6/Lower Caves | Discovered new exit (range 10) 12833 | -6/Lower Caves | Identified exit to Lower Caves 12835 | -6/Lower Caves | Entered another Lower Caves area 12869 | -6/Lower Caves | Lost 4 parts (1n2u1w) 12947 | -6/Lower Caves | Discovered exit to Factory (range 10) 12968 | -6/Lower Caves | Entered Factory 12968 | -5/Factory | Evolved 2 slots: Power x1, Propulsion x1 13158 | -5/Factory | Repaired Force Rifle 13268 | -5/Factory | Garrison activated, responded to threat 13489 | -5/Factory | Discovered new exit (range 16) 13564 | -5/Factory | Identified exit to Extension 13568 | -5/Factory | Entered Extension 13914 | -5/Extension | Build established: Scavenger-Gunner 14200 | -5/Extension | Rescued a captive Derelict 14201 | -5/Extension | Rescued a captive Derelict 14569 | -5/Extension | Rescued a captive Derelict 14570 | -5/Extension | Rescued a captive Derelict 14608 | -5/Extension | Rescued a captive Derelict 14610 | -5/Extension | Rescued a captive Derelict 14861 | -5/Extension | Spotted B-75 Beast 14867 | -5/Extension | Destroyed B-75 Beast 14885 | -5/Extension | Spotted B-75 Beast 14892 | -5/Extension | Allies destroyed B-75 Beast 15175 | -5/Extension | Rescued a captive Derelict 15394 | -5/Extension | Lost 7 allies 15478 | -5/Extension | Rescued A7 15549 | -5/Extension | Discovered new exit (range 10) 15551 | -5/Extension | Discovered new exit (range 6) 15570 | -5/Extension | Identified exit to Factory 15603 | -5/Extension | Identified exit to Cetus 15631 | -5/Extension | Entered Cetus 15631 | -5/Cetus | Accompanied by 14 allies (A7) 15636 | -5/Cetus | Acquired a Cetus Manufacturing Module code from A7 15646 | -5/Cetus | Spotted Cetus Guard 15646 | -5/Cetus | Spotted Cetus Guard 15650 | -5/Cetus | Spotted Cetus Guard 15654 | -5/Cetus | Destroyed Cetus Guard 15656 | -5/Cetus | Allies destroyed Cetus Guard 15670 | -5/Cetus | Destroyed Cetus Guard 15696 | -5/Cetus | Lost 4 allies 15815 | -5/Cetus | Started Cetus Manufacturing Module 15840 | -5/Cetus | Manufactured an Enhanced Grunt 15845 | -5/Cetus | Escorted A7 to Cetus Mainframe 15865 | -5/Cetus | Manufactured an Enhanced Grunt 15890 | -5/Cetus | Manufactured an Enhanced Grunt 15915 | -5/Cetus | Manufactured an Enhanced Grunt 15940 | -5/Cetus | Manufactured an Enhanced Grunt 15972 | -5/Cetus | Discovered new exit (range 16) 16010 | -5/Cetus | Spotted Cetus Guard 16011 | -5/Cetus | Spotted Cetus Guard 16014 | -5/Cetus | Spotted Cetus Guard 16014 | -5/Cetus | Spotted Cetus Guard 16022 | -5/Cetus | Allies destroyed Cetus Guard 16026 | -5/Cetus | Allies destroyed Cetus Guard 16028 | -5/Cetus | Allies destroyed Cetus Guard 16029 | -5/Cetus | Allies destroyed Cetus Guard 16036 | -5/Cetus | Discovered exit to Factory (range 16) 16047 | -5/Cetus | Met Revision 17 16241 | -5/Cetus | Identified exit to Archives 16290 | -5/Cetus | Entered Archives 16290 | -5/Archives | Accompanied by 15 allies (A7) 16295 | -5/Archives | Received a hacking code to weaken MAIN.C 16346 | -5/Archives | Lost 4 allies 16371 | -5/Archives | Discovered new exit (range 16) 16397 | -5/Archives | Identified exit to Hub_04(d) 16505 | -5/Archives | Discovered exit to Hub_04(d) (range 16) 16554 | -5/Archives | Discovered exit to Factory (range 15) 16948 | -5/Archives | Entered Hub_04(d) 16948 | -5/Hub_04(d) | Accompanied by 10 allies 17028 | -5/Hub_04(d) | Build established: Scavenger-Skirmisher 17131 | -5/Hub_04(d) | Network Hub disabled 17131 | -5/Hub_04(d) | Network Hub disabled 17424 | -5/Hub_04(d) | Network Hub disabled 17429 | -5/Hub_04(d) | Network Hub disabled 17449 | -5/Hub_04(d) | Garrison activated, responded to threat 17498 | -5/Hub_04(d) | Lost 4 allies 17548 | -5/Hub_04(d) | First assault squad dispatched 17581 | -5/Hub_04(d) | Entered Factory 17581 | -4/Factory | Accompanied by 1 ally 17581 | -4/Factory | Evolved 2 slots: Propulsion x1, Utility x1 17712 | -4/Factory | Unchained authorized (DW-4LL) 17831 | -4/Factory | First assault squad dispatched 17899 | -4/Factory | Discovered new exit (range 12) 17911 | -4/Factory | Identified exit to Research 18022 | -4/Factory | Entered Research 18022 | -3/Research | Evolved 2 slots: Utility x2 18101 | -3/Research | Fabricated Cryofiber Web (x2) 18222 | -3/Research | Revision forces began assault on 0b10 18240 | -3/Research | Discovered new exit (range 15) 18262 | -3/Research | Met up with Revision 17++ 18290 | -3/Research | Found Prototype Launcher 18290 | -3/Research | Identified Mni. Smartbomb Launcher 18340 | -3/Research | Identified exit to Armory 18520 | -3/Research | Discovered new exit (range 11) 18537 | -3/Research | Identified exit to Research 18576 | -3/Research | Lost 3 allies 18722 | -3/Research | Research terminal network offline 19125 | -3/Research | Spotted Striker 19128 | -3/Research | Spotted Striker 19158 | -3/Research | Destroyed Striker 19170 | -3/Research | Destroyed Striker 19225 | -3/Research | Discovered exit to Research (range 8) 19530 | -3/Research | Discovered exit to Research (range 15) 19845 | -3/Research | Found Prototype Device 19845 | -3/Research | Identified Exp. Thermal Defense Suite 20037 | -3/Research | Found Gamma Bomb Array 20209 | -3/Research | Spotted Striker 20232 | -3/Research | Spotted Striker 20234 | -3/Research | Spotted Striker 20259 | -3/Research | Spotted Striker 20260 | -3/Research | Destroyed Striker 20260 | -3/Research | Spotted Executioner 20264 | -3/Research | Destroyed Striker 20264 | -3/Research | Destroyed Striker 20275 | -3/Research | Destroyed Executioner 20327 | -3/Research | Destroyed 7 combat bots 20374 | -3/Research | Lost 4 parts (1p3n) 20490 | -3/Research | Build established: Scavenger-Tank 20493 | -3/Research | Spotted Striker 20527 | -3/Research | Core integrity fell below 50% 20558 | -3/Research | Lost 11 parts (2p3n2u4w) 20564 | -3/Research | System corruption reached 10% 20916 | -3/Research | Lost 4 parts (1p1n2w) 20936 | -3/Research | Spotted Striker 20949 | -3/Research | Destroyed Striker 20955 | -3/Research | Spotted Striker 20961 | -3/Research | Spotted Striker 20967 | -3/Research | Core integrity fell below 20% 20981 | -3/Research | Destroyed Striker 20990 | -3/Research | Destroyed Striker 20998 | -3/Research | Spotted Striker 20998 | -3/Research | Spotted Striker 21010 | -3/Research | Destroyed Striker 21011 | -3/Research | Crushed by falling debris 21020 | -3/Research | Spotted Striker 21034 | -3/Research | Destroyed by Striker with Plasma Lance Last Messages --------------- 21011_ The unstable cave ceiling collapses. 21011_ Crushed by falling debris. 21011_ Lgt. Particle Reactor destroyed. 21011_ System corrupted by crushing effect (+4). 21011_ Centrium Light Armor Plating destroyed. 21011_ System corrupted by crushing effect (+1). 21011_ Storm Laser destroyed. 21011_ System corrupted by crushing effect (+1). 21011_ Impulse Thruster Array crushed. 21016_ The unstable cave ceiling collapses. 21016_ Exp. Matter Compressor crushed. 21017_ The unstable cave ceiling collapses. 21017_ Myomer Leg crushed. 21023_ The unstable cave ceiling collapses. 21023_ Lgt. Particle Reactor crushed. 21024_ System corrupted: Energy discharge (-1). 21026_ Critical hit (Impale). 21026_ Myomer Leg destroyed. 21031_ The unstable cave ceiling collapses. 21031_ Critical hit (Impale). Map ----- +----------------------------------------------------+ | !% ###???????????????????"##??### ## | | = !% ##???????????????????"T####### | | # ###???????????????????" ##### ## ## | | # # ###???????????????????" ! = | | ### ####??????????????????" =% % | | # # ##??????????????????" [ | | ## # ###??????????????????" # # ## | | ### # ####??????????????????" # # | | ## ####????????????????????"## ## # | | ####????????????????????"## ## | | #### ##########???????????????## !%## # | | #### = ##########???????????????## = ## # | | #### !%[+ ##???????????????## ! !## # | | #####[[ # = ##???????????????## %!!######### | | #!%[# ##???????????????## !%######### | | +[% = * ##???????????????## =# # | | " ###!# ##??????########### # # | | " ### ##########??????########### # ] ### | | " ### ################## # # # | | " ### ################## ! !=|[ # + | | " ## ####! =! ## #%!* # """ # | | "%=*%=%= %[ !# = """ #"%%[# """ # | | !# =%!%! = """ !"""[%% """" +%[| + """ # | | =!%!! =!!! """ """![%#] "" #[* # ### | | %==![[% % # """ """[%!=!%/ # # ### | | %%%%%=[!![!# """ ""==!#@K!!%! ; ########### | | *!* %=%]%%= """ """==##K%! [ # | | !%% = %*[ """ """ !% # #### | | != %##! # """ """ #!## % ### % | | # ##### # =%! == # ### | | #= !%= # #####"########## | | # [!| # ## ###### | | ############### ##### # ##??## | | ####################### """"" ##??## | | ##???????????#####??### """"" ##??## | | ##???????????????????## """"" ##??## | | ##???????????????????## """"" ##??## | | ##+##########???????????????????## ##??## | | #########???????????????????## ??? ###### | | ##??????????????????????????###???########### | | ##??????????????????????????###???## !###[ | | ##????????????????????????????????## ###[ | | ##????????????????????????????????## ###[ | | ##????????????????????????????????## ### | | ##????????????????????????????????## ### | | ##????????????????????????????????## ### | | ##????????????????????????????????#####+##### | | ##????????????????????????????????##### | | ##???????????????????????????????????## | | ##???????????????????????????????????## | +----------------------------------------------------+ Best States ------------- Heat Dissipation 174 Coolant Potential 80 Energy Generation 43 Energy Capacity 590 Matter Stores 300 Matter Capacity 300 Sight Range 16 Robot Scan Range 16 Terrain Scan Range 16 Terrain Scan Density 10 Base Temperature (-) 100 Armor Coverage 450 Resistance: TH 10 Utility Shielding 33 Phase Shifting 5 Evasion (%) 70 Targeting Accuracy 20 Core Analysis 6 Particle Charging 20 Salvage Targeting 2 Offensive Hacking 10 Item Schematics ----------------- Hcp. Storage Unit | -10/Materials | Hacked Ion Engine | -10/Materials | Hacked Aluminum Leg | -10/Materials | Hacked Med. Laser | -10/Materials | Hacked Heat Sink | -9/Materials | Hacked Targeting Computer | -9/Materials | Hacked Cryofiber Web | -8/Materials | Hacked Imp. Carbon-fiber Leg | -7/Factory | Scanalyzed Launcher Guidance Computer | -7/Factory | Hacked Force Rifle | -6/Factory | Scanalyzed Antimatter Reactor | -6/Factory | Scanalyzed Adv. Particle Charger | -6/Factory | Scanalyzed Robot Schematics ------------------ None Fabricated ------------ Force Rifle | x2 | -6/Factory Cryofiber Web | x2 | -3/Research Repaired ---------- Aluminum Leg | 13% | -9/Storage Aluminum Leg | 38% | -9/Storage Imp. Aluminum Leg | 45% | -7/Factory Reflective Plating | 25% | -7/Factory Adv. Beam Rifle | 22% | -7/Factory Force Rifle | 18% | -5/Factory Studied --------- None Alien Tech Used ----------------- None Achievements -------------- None Challenges ------------ None Game ------ Seed FieldthrustSpreadDevice Manual? 0 Play Time 03:06:20 Cumulative 286.0 hours Start 2025.11.17 @ 20:27:18 End 2025.11.17 @ 23:44:06 Sessions 1 Manual Loads 0 Difficulty Rogue Special Mode None Game No. 307 Rogue 303 Adventurer 3 Explorer 1 Win Type - Total 1 Types 1/0/0/0/0/0/0/0/0/0 Lore% 78 Gallery% 76 Achievement% 61 Wizard Run 0 Options --------- Layout 0 ASCII 0 Keyboard 0 Movement Mouse Keybinds 0 Fullscreen 2 Font 18/SmallcapsGlow Map View 76x50 Zoom Use 0% Tactical HUD 1 Map Filters NONE Filters NONE Steam 1 RUN: 33858be4-0656-4dde-9f8f-219132d1b006